fUSD/lending_fUSD_20241227
["ID","MTS","AMOUNT","RATE_DAILY","PERIOD"]
[346805548,1735300254091,-500.0,0.00010886,2]
[346805549,1735300254100,-1405.52,0.00010886,2]
[346805550,1735300254110,-500.0,0.00010886,2]
[346805551,1735300254119,-500.0,0.00010886,2]
[346805552,1735300254130,-500.0,0.00010886,2]
[346805553,1735300254140,-500.0,0.00010886,2]
[346805554,1735300254149,-500.0,0.00010886,2]
[346805555,1735300254159,-500.0,0.00010886,2]
[346805556,1735300254168,-500.0,0.00010886,2]
[346805557,1735300254179,-500.0,0.00010886,2]
[346805558,1735300254188,-500.0,0.00010886,2]
[346805559,1735300254197,-500.0,0.00010886,2]
[346805560,1735300254207,-715.23,0.00010886,2]
[346805561,1735300254216,-500.0,0.00010886,2]
[346805562,1735300254225,-500.0,0.00010886,2]
[346805563,1735300254235,-1280.18,0.00010886,2]
[346805564,1735300254244,-1442.55,0.00010886,2]
[346805565,1735300254253,-500.0,0.00010886,2]
[346805566,1735300254262,-500.0,0.00010886,2]
[346805567,1735300254271,-933.44,0.00010886,2]
[346805568,1735300254281,-1809.67,0.00010886,2]
[346805569,1735300254291,-500.0,0.00010886,2]
[346805570,1735300254300,-648.45,0.00010886,2]
[346805571,1735300254309,-1023.79,0.00010886,2]
[346805572,1735300254319,-500.0,0.00010886,2]
[346805573,1735300254328,-500.0,0.00010886,2]
[346805574,1735300254338,-500.0,0.00010886,2]
[346805575,1735300254347,-500.0,0.00010886,2]
[346805576,1735300254355,-2158.91,0.00010886,2]
[346805577,1735300254365,-500.0,0.00010886,2]
[346805578,1735300254374,-500.0,0.00010886,2]
[346805579,1735300254383,-501.12578391,0.00010886,2]
[346805580,1735300254392,-500.0,0.00010886,2]
[346805581,1735300254401,-724.48,0.00010886,2]
[346805582,1735300254410,-500.0,0.00010886,2]
[346805583,1735300254419,-500.0,0.00010886,2]
[346805584,1735300254429,-2561.68,0.00010886,2]
[346805585,1735300254438,-500.0,0.00010886,2]
[346805586,1735300254447,-500.0,0.00010886,2]
[346805587,1735300254457,-500.0,0.00010886,2]
[346805588,1735300254466,-500.0,0.00010886,2]
[346805589,1735300254475,-500.0,0.00010886,2]
[346805590,1735300254484,-500.0,0.00010886,2]
[346805591,1735300254493,-1226.4,0.00010886,2]
[346805592,1735300254503,-500.0,0.00010886,2]
[346805593,1735300254513,-500.0,0.00010886,2]
[346805594,1735300254523,-500.0,0.00010886,2]
[346805595,1735300254533,-505.78743971,0.00010886,2]
[346805596,1735300254751,-1736.84,0.00010886,2]
[346805597,1735300254762,-500.0,0.00010886,2]
[346805598,1735300254773,-2436.77,0.00010886,2]
[346805599,1735300254783,-500.0,0.00010886,2]
[346805600,1735300254793,-500.0,0.00010886,2]
[346805601,1735300254802,-500.0,0.00010886,2]
[346805602,1735300254811,-2099.43,0.00010886,2]
[346805603,1735300254820,-500.0,0.00010886,2]
[346805604,1735300254830,-500.0,0.00010886,2]
[346805605,1735300254841,-996.89,0.00010886,2]
[346805606,1735300254852,-647.76,0.00010886,2]
[346805607,1735300254862,-801.97,0.00010886,2]
[346805608,1735300254872,-1513.44,0.00010886,2]
[346805609,1735300254881,-500.0,0.00010886,2]
[346805610,1735300254891,-500.0,0.00010886,2]
[346805611,1735300254900,-500.0,0.00010886,2]
[346805612,1735300254910,-500.0,0.00010886,2]
[346805613,1735300254919,-1162.88,0.00010886,2]
[346805614,1735300254928,-500.0,0.00010886,2]
[346805615,1735300254937,-504.91089263,0.00010886,2]
[346805616,1735300254946,-500.0,0.00010886,2]
[346805617,1735300254955,-500.0,0.00010886,2]
[346805618,1735300254964,-932.6,0.00010886,2]
[346805619,1735300254974,-543.62,0.00010886,2]
[346805620,1735300254983,-500.0,0.00010886,2]
[346805621,1735300254993,-786.22,0.00010886,2]
[346805622,1735300255002,-1341.51,0.00010886,2]
[346805623,1735300255012,-500.0,0.00010886,2]
[346805624,1735300255021,-500.0,0.00010886,2]
[346805625,1735300255030,-500.0,0.00010886,2]
[346805626,1735300255040,-1104.37,0.00010886,2]
[346805627,1735300255049,-1112.46,0.00010886,2]
[346805628,1735300255058,-1281.23,0.00010886,2]
[346805629,1735300255067,-504.58861116,0.00010886,2]
[346805630,1735300255077,-500.93568985,0.00010886,2]
[346805631,1735300255086,-500.0,0.00010886,2]
[346805632,1735300255095,-500.0,0.00010886,2]
[346805633,1735300255105,-560.29455943,0.00010886,2]
[346805634,1735300255114,-365.70872623,0.00010886,2]
[346805635,1735300255123,-500.0,0.00010886,2]
[346805636,1735300255132,-500.26504094,0.00010886,2]
[346805637,1735300255141,-500.0,0.00010886,2]
[346805638,1735300255151,-2022.55,0.00010886,2]
[346805639,1735300255160,-527.92,0.00010886,2]
[346805640,1735300255170,-952.09,0.00010886,2]
[346805641,1735300255179,-1058.52,0.00010886,2]
[346805642,1735300255188,-500.0,0.00010886,2]
[346805643,1735300255197,-591.69,0.00010886,2]
[346805644,1735300255207,-500.0,0.00010886,2]
[346805645,1735300255216,-500.0,0.00010886,2]
[346805646,1735300255225,-2077.15,0.00010886,2]
[346805647,1735300255234,-500.0,0.00010886,2]
[346805648,1735300255244,-500.0,0.00010886,2]
[346805649,1735300255253,-1214.08,0.00010886,2]
[346805650,1735300255263,-500.0,0.00010886,2]
[346805651,1735300255272,-500.0,0.00010886,2]
[346805652,1735300255282,-1090.27,0.00010886,2]
[346805653,1735300255291,-500.0,0.00010886,2]
[346805654,1735300255300,-500.0,0.00010886,2]
[346805655,1735300255309,-1096.2,0.00010886,2]
[346805656,1735300255319,-1338.7,0.00010886,2]
[346805657,1735300255328,-500.0,0.00010886,2]
[346805658,1735300255337,-500.0,0.00010886,2]
[346805659,1735300255346,-500.0,0.00010886,2]
[346805660,1735300255357,-500.0,0.00010886,2]
[346805661,1735300255368,-500.0,0.00010886,2]
[346805662,1735300255378,-1423.47,0.00010886,2]
[346805663,1735300255387,-500.0,0.00010886,2]
[346805664,1735300255397,-500.0,0.00010886,2]
[346805665,1735300255406,-500.0,0.00010886,2]
[346805666,1735300255416,-500.0,0.00010886,2]
[346805667,1735300255425,-881.64,0.00010886,2]
[346805668,1735300255434,-788.94,0.00010886,2]
[346805669,1735300255444,-500.0,0.00010886,2]
[346805670,1735300255453,-500.0,0.00010886,2]
[346805671,1735300255464,-500.0,0.00010886,2]
[346805672,1735300255473,-500.0,0.00010886,2]
[346805673,1735300255483,-500.0,0.00010886,2]
[346805674,1735300255492,-2276.04,0.00010886,2]
[346805675,1735300255502,-545.03,0.00010886,2]
[346805676,1735300255512,-500.0,0.00010886,2]
[346805677,1735300255523,-1689.75,0.00010886,2]
[346805678,1735300255533,-500.0,0.00010886,2]
[346805679,1735300255543,-502.92327747,0.00010886,2]
[346805680,1735300255556,-500.0,0.00010886,2]
[346805681,1735300255566,-1241.58,0.00010886,2]
[346805682,1735300255575,-500.0,0.00010886,2]
[346805683,1735300255585,-1000.35,0.00010886,2]
[346805684,1735300255597,-500.0,0.00010886,2]
[346805685,1735300255608,-500.0,0.00010886,2]
[346805686,1735300255618,-502.2015154,0.00010886,2]
[346805687,1735300255630,-500.0,0.00010886,2]
[346805688,1735300255644,-500.0,0.00010886,2]
[346805689,1735300255654,-5976.88,0.00010886,2]
[346805690,1735300255663,-500.0,0.00010886,2]
[346805691,1735300255673,-500.0,0.00010886,2]
[346805692,1735300255682,-500.0,0.00010886,2]
[346805693,1735300255691,-638.16,0.00010886,2]
[346805694,1735300255701,-500.0,0.00010886,2]
[346805695,1735300255711,-1021.08,0.00010886,2]
[346805696,1735300255721,-1582.67,0.00010886,2]
[346805697,1735300255731,-541.37,0.00010886,2]
[346805698,1735300255740,-1334.35,0.00010886,2]
[346805699,1735300255750,-1739.21,0.00010886,2]
[346805700,1735300255759,-867.5,0.00010886,2]
[346805701,1735300255769,-504.0470621,0.00010886,2]
[346805702,1735300255779,-500.0,0.00010886,2]
[346805703,1735300255788,-500.0,0.00010886,2]
[346805704,1735300255798,-500.0,0.00010886,2]
[346805705,1735300255809,-1458.63,0.00010886,2]
[346805706,1735300255819,-879.58,0.00010886,2]
[346805707,1735300255828,-500.0,0.00010886,2]
[346805708,1735300255839,-1690.25,0.00010886,2]
[346805709,1735300255847,-500.0,0.00010886,2]
[346805710,1735300255857,-500.0,0.00010886,2]
[346805711,1735300255866,-756.82,0.00010886,2]
[346805712,1735300255875,-500.0,0.00010886,2]
[346805713,1735300255885,-500.0,0.00010886,2]
[346805714,1735300255894,-500.0,0.00010886,2]
[346805715,1735300255903,-500.0,0.00010886,2]
[346805716,1735300255913,-24592.29,0.00010886,2]
[346805717,1735300255922,-500.0,0.00010886,2]
[346805718,1735300255931,-592.27,0.00010886,2]
[346805719,1735300255940,-500.0,0.00010886,2]
[346805720,1735300255951,-500.0,0.00010886,2]
[346805721,1735300255960,-500.0,0.00010886,2]
[346805722,1735300255970,-2032.36,0.00010886,2]
[346805723,1735300255979,-2902.76,0.00010886,2]
[346805724,1735300255988,-500.0,0.00010886,2]
[346805725,1735300255998,-500.0,0.00010886,2]
[346805726,1735300256007,-500.0,0.00010886,2]
[346805727,1735300256017,-1665.17,0.00010886,2]
[346805728,1735300256026,-500.0,0.00010886,2]
[346805729,1735300256036,-500.0,0.00010886,2]
[346805730,1735300256045,-736.11,0.00010886,2]
[346805731,1735300256054,-500.0,0.00010886,2]
[346805732,1735300256063,-500.0,0.00010886,2]
[346805733,1735300256073,-625.56,0.00010886,2]
[346805734,1735300256082,-500.0,0.00010886,2]
[346805735,1735300256092,-500.0,0.00010886,2]
[346805736,1735300256101,-500.0,0.00010886,2]
[346805737,1735300256110,-500.0,0.00010886,2]
[346805738,1735300256119,-500.0,0.00010886,2]
[346805739,1735300256128,-2052.49,0.00010886,2]
[346805740,1735300256138,-500.0,0.00010886,2]
[346805741,1735300256147,-500.0,0.00010886,2]
[346805742,1735300256156,-500.0,0.00010886,2]
[346805743,1735300256166,-314.29246268,0.00010886,2]
[346805744,1735300256175,-500.0,0.00010886,2]
[346805745,1735300256184,-1492.6,0.00010886,2]
[346805746,1735300256193,-500.0,0.00010886,2]
[346805747,1735300256203,-1515.8,0.00010886,2]
[346805748,1735300256213,-2767.64,0.00010886,2]
[346805749,1735300256223,-500.0,0.00010886,2]
[346805750,1735300256232,-914.53,0.00010886,2]
[346805751,1735300256242,-500.0,0.00010886,2]
[346805752,1735300256251,-500.0,0.00010886,2]
[346805753,1735300256260,-500.0,0.00010886,2]
[346805754,1735300256269,-1733.88,0.00010886,2]
[346805755,1735300256278,-500.0,0.00010886,2]
[346805756,1735300256290,-500.0,0.00010886,2]
[346805757,1735300256300,-500.0,0.00010886,2]
[346805758,1735300256311,-542.82382177,0.00010886,2]
[346805759,1735300256321,-500.0,0.00010886,2]
[346805760,1735300256330,-500.0,0.00010886,2]
[346805761,1735300256339,-1077.57,0.00010886,2]
[346805762,1735300256349,-500.0,0.00010886,2]
[346805763,1735300256358,-931.94,0.00010886,2]
[346805764,1735300256367,-500.0,0.00010886,2]
[346805765,1735300256377,-500.0,0.00010886,2]
[346805766,1735300256386,-501.27650721,0.00010886,2]
[346805767,1735300256395,-508.61,0.00010886,2]
[346805768,1735300256405,-899.44,0.00010886,2]
[346805769,1735300256415,-1746.26,0.00010886,2]
[346805770,1735300256424,-706.16,0.00010886,2]
[346805771,1735300256434,-500.0,0.00010886,2]
[346805772,1735300256443,-1787.4,0.00010886,2]
[346805773,1735300256452,-500.0,0.00010886,2]
[346805774,1735300256462,-3755.46,0.00010886,2]
[346805775,1735300256471,-500.0,0.00010886,2]
[346805776,1735300256480,-500.0,0.00010886,2]
[346805777,1735300256490,-514.809203,0.00010886,2]
[346805778,1735300256499,-500.0,0.00010886,2]
[346805779,1735300256508,-2200.97,0.00010886,2]
[346805780,1735300256518,-500.0,0.00010886,2]
[346805781,1735300256527,-500.0,0.00010886,2]
[346805782,1735300256537,-500.0,0.00010886,2]
[346805783,1735300256547,-500.0,0.00010886,2]
[346805784,1735300256561,-500.0,0.00010886,2]
[346805785,1735300256570,-1303.95,0.00010886,2]
[346805786,1735300256580,-500.0,0.00010886,2]
[346805787,1735300256589,-500.0,0.00010886,2]
[346805788,1735300256599,-500.59453361,0.00010886,2]
[346805789,1735300256608,-500.0,0.00010886,2]
[346805790,1735300256618,-509.74,0.00010886,2]
[346805791,1735300256627,-500.0,0.00010886,2]
[346805792,1735300256637,-500.0,0.00010886,2]
[346805793,1735300256646,-500.0,0.00010886,2]
[346805794,1735300256656,-500.0,0.00010886,2]
[346805795,1735300256665,-500.0,0.00010886,2]
[346805796,1735300256675,-288.97615318,0.00010886,2]
[346805797,1735300256684,-660.11,0.00010886,2]
[346805798,1735300256693,-1619.13,0.00010886,2]
[346805799,1735300256703,-500.0,0.00010886,2]
[346805800,1735300256712,-500.0,0.00010886,2]
[346805801,1735300256722,-500.0,0.00010886,2]
[346805802,1735300256731,-500.0,0.00010886,2]
[346805803,1735300256742,-500.0,0.00010886,2]
[346805804,1735300256751,-1432.24,0.00010886,2]
[346805805,1735300256761,-826.49,0.00010886,2]
[346805806,1735300256770,-500.0,0.00010886,2]
[346805807,1735300256781,-283.76383965,0.00010886,2]
[346805808,1735300256791,-632.65,0.00010886,2]
[346805809,1735300256801,-500.0,0.00010886,2]
[346805810,1735300256810,-500.0,0.00010886,2]
[346805811,1735300256819,-1247.96,0.00010886,2]
[346805812,1735300256828,-595.05,0.00010886,2]
[346805813,1735300256837,-500.0,0.00010886,2]
[346805814,1735300256847,-500.0,0.00010886,2]
[346805815,1735300256856,-500.0,0.00010886,2]
[346805816,1735300256866,-500.0,0.00010886,2]
[346805817,1735300256875,-500.0,0.00010886,2]
[346805818,1735300256885,-2971.14,0.00010886,2]
[346805819,1735300256895,-500.0,0.00010886,2]
[346805820,1735300256905,-500.0,0.00010886,2]
[346805821,1735300256915,-500.0,0.00010886,2]
[346805822,1735300256925,-500.0,0.00010886,2]
[346805823,1735300256935,-500.0,0.00010886,2]
[346805824,1735300256944,-540.13179461,0.00010886,2]
[346805825,1735300256954,-500.0,0.00010886,2]
[346805826,1735300256964,-500.0,0.00010886,2]
[346805827,1735300256974,-811.44,0.00010886,2]
[346805828,1735300256984,-1660.05,0.00010886,2]
[346805829,1735300256995,-500.0,0.00010886,2]
[346805830,1735300257005,-500.0,0.00010886,2]
[346805831,1735300257015,-500.0,0.00010886,2]
[346805832,1735300257026,-1117.53,0.00010886,2]
[346805833,1735300257037,-500.0,0.00010886,2]
[346805834,1735300257047,-1453.04,0.00010886,2]
[346805835,1735300257057,-500.0,0.00010886,2]
[346805836,1735300257067,-3228.39,0.00010886,2]
[346805837,1735300257159,-500.0,0.00010886,2]
[346805838,1735300257169,-500.0,0.00010886,2]
[346805839,1735300257178,-500.0,0.00010886,2]
[346805840,1735300257187,-500.67404514,0.00010886,2]
[346805841,1735300257196,-500.0,0.00010886,2]
[346805842,1735300257205,-1234.99,0.00010886,2]
[346805843,1735300257215,-227.25154631,0.00010886,2]
[346805844,1735300257224,-536.82,0.00010886,2]
[346805845,1735300257233,-500.0,0.00010886,2]
[346805846,1735300257242,-1899.03,0.00010886,2]
[346805847,1735300257251,-500.0,0.00010886,2]
[346805848,1735300257261,-500.0,0.00010886,2]
[346805849,1735300257270,-500.0,0.00010886,2]
[346805850,1735300257280,-500.0,0.00010886,2]
[346805851,1735300257289,-500.0,0.00010886,2]
[346805852,1735300257299,-191.39257274,0.00010886,2]
[346805853,1735300257308,-500.0,0.00010886,2]
[346805854,1735300257318,-3172.19,0.00010886,2]
[346805855,1735300257328,-1671.23,0.00010886,2]
[346805856,1735300257337,-500.0,0.00010886,2]
[346805857,1735300257346,-191.20418197,0.00010886,2]
[346805858,1735300257356,-500.0,0.00010886,2]
[346805859,1735300257365,-222.67871932,0.00010886,2]
[346805860,1735300257375,-500.0,0.00010886,2]
[346805861,1735300257384,-500.0,0.00010886,2]
[346805862,1735300257394,-500.0,0.00010886,2]
[346805863,1735300257404,-3782.99,0.00010886,2]
[346805864,1735300257414,-500.0,0.00010886,2]
[346805865,1735300257423,-500.0,0.00010886,2]
[346805866,1735300257433,-500.0,0.00010886,2]
[346805867,1735300257443,-1495.89,0.00010886,2]
[346805868,1735300257453,-5260.02,0.00010886,2]
[346805869,1735300257463,-500.0,0.00010886,2]
[346805870,1735300257472,-500.0,0.00010886,2]
[346805871,1735300257482,-315.58173529,0.00010886,2]
[346805872,1735300257491,-272.47093835,0.00010886,2]
[346805873,1735300257501,-500.0,0.00010886,2]
[346805874,1735300257511,-610.17,0.00010886,2]
[346805875,1735300257521,-315.50229635,0.00010886,2]
[346805876,1735300257531,-500.0,0.00010886,2]
[346805877,1735300257541,-514.64187278,0.00010886,2]
[346805878,1735300257553,-500.0,0.00010886,2]
[346805879,1735300257563,-1085.46,0.00010886,2]
[346805880,1735300257574,-207.21892168,0.00010886,2]
[346805881,1735300257583,-315.38502379,0.00010886,2]
[346805882,1735300257595,-604.81,0.00010886,2]
[346805883,1735300257605,-1609.71,0.00010886,2]
[346805884,1735300257614,-500.0,0.00010886,2]
[346805885,1735300257623,-500.0,0.00010886,2]
[346805886,1735300257633,-500.0,0.00010886,2]
[346805887,1735300257643,-500.0,0.00010886,2]
[346805888,1735300257652,-500.38023095,0.00010886,2]
[346805889,1735300257662,-22211.5,0.00010886,2]
[346805890,1735300257671,-500.0,0.00010886,2]
[346805891,1735300257681,-500.0,0.00010886,2]
[346805892,1735300257690,-1458.74,0.00010886,2]
[346805893,1735300257700,-1960.31,0.00010886,2]
[346805894,1735300257709,-500.0,0.00010886,2]
[346805895,1735300257720,-1046.66,0.00010886,2]
[346805896,1735300257730,-613.84272375,0.00010887,2]
[346805897,1735300257741,-562.28870808,0.00010887,2]
[346805898,1735300257751,-507.18460288,0.00010887,2]
[346805899,1735300257761,-500.0,0.00010887,2]
[346805900,1735300257772,-500.0,0.00010887,2]
[346805901,1735300257784,-500.0,0.00010887,2]
[346805902,1735300257793,-500.0,0.00010887,2]
[346805903,1735300257804,-500.0,0.00010887,2]
[346805904,1735300257814,-500.0,0.00010887,2]
[346805905,1735300257824,-500.0,0.00010887,2]
[346805906,1735300257835,-505.87427498,0.00010887,2]
[346805907,1735300257844,-500.0,0.00010887,2]
[346805908,1735300257854,-500.0,0.00010887,2]
[346805909,1735300257863,-451.74750534,0.00010887,2]
[346805910,1735300257872,-505.50906787,0.00010887,2]
[346805911,1735300257882,-500.0,0.00010887,2]
[346805912,1735300257891,-500.0,0.00010887,2]
[346805913,1735300257900,-564.73098524,0.00010887,2]
[346805914,1735300257909,-500.0,0.00010887,2]
[346805915,1735300257919,-500.0,0.00010887,2]
[346805916,1735300257928,-500.0,0.00010887,2]
[346805917,1735300257937,-500.0,0.00010887,2]
[346805918,1735300257947,-500.0,0.00010887,2]
[346805919,1735300257957,-500.0,0.00010887,2]
[346805920,1735300257966,-500.0,0.00010887,2]
[346805921,1735300257976,-502.23490706,0.00010887,2]
[346805922,1735300257987,-501.03426991,0.00010887,2]
[346805923,1735300257997,-500.0,0.00010887,2]
[346805924,1735300258008,-1844.5,0.00010887,2]
[346805925,1735300258017,-1520.13,0.00010887,2]
[346805926,1735300258027,-3592.02,0.00010887,2]
[346805927,1735300258038,-2918.18,0.00010887,2]
[346805928,1735300258047,-500.0,0.00010887,2]
[346805929,1735300258057,-500.0,0.00010887,2]
[346805930,1735300258066,-500.0,0.00010887,2]
[346805931,1735300258076,-3789.04,0.00010887,2]
[346805932,1735300258085,-3299.74,0.00010887,2]
[346805933,1735300258094,-500.0,0.00010887,2]
[346805934,1735300258104,-775.87,0.00010887,2]
[346805935,1735300258113,-1641.81,0.00010887,2]
[346805936,1735300258124,-812.82,0.00010887,2]
[346805937,1735300258135,-570.60910659,0.00010887,2]
[346805938,1735300258144,-500.0,0.00010887,2]
[346805939,1735300258153,-500.0,0.00010887,2]
[346805940,1735300258163,-500.0,0.00010887,2]
[346805941,1735300258173,-2069.92,0.00010887,2]
[346805942,1735300258182,-580.45,0.00010887,2]
[346805943,1735300258192,-1520.28,0.00010887,2]
[346805944,1735300258201,-502.46121985,0.00010887,2]
[346805945,1735300258211,-1631.35,0.00010887,2]
[346805946,1735300258220,-500.0,0.00010887,2]
[346805947,1735300258230,-244.54358161,0.00010887,2]
[346805948,1735300258240,-500.0,0.00010887,2]
[346805949,1735300258250,-579.91511941,0.00010887,2]
[346805950,1735300258259,-1940.08,0.00010887,2]
[346805951,1735300258269,-4781.8,0.00010887,2]
[346805952,1735300258278,-500.0,0.00010887,2]
[346805953,1735300258289,-1947.22,0.00010887,2]
[346805954,1735300258299,-1638.61,0.00010887,2]
[346805955,1735300258308,-500.0,0.00010887,2]
[346805956,1735300258318,-1601.16,0.00010887,2]
[346805957,1735300258327,-8517.23,0.00010887,2]
[346805958,1735300258336,-616.24,0.00010887,2]
[346805959,1735300258346,-2378.68,0.00010887,2]
[346805960,1735300258356,-1707.31,0.00010887,2]
[346805961,1735300258365,-6248.96,0.00010887,2]
[346805962,1735300258375,-2079.81,0.00010887,2]
[346805963,1735300258383,-524.8195953,0.00010887,2]
[346805964,1735300258393,-3977.34,0.00010887,2]
[346805965,1735300258402,-500.0,0.00010887,2]
[346805966,1735300258411,-1940.73,0.00010887,2]
[346805967,1735300258421,-500.0,0.00010887,2]
[346805968,1735300258431,-2629.23,0.00010887,2]
[346805969,1735300258441,-701.43,0.00010887,2]
[346805970,1735300258451,-1204.65,0.00010887,2]
[346805971,1735300258461,-1396.43,0.00010887,2]
[346805972,1735300258470,-5538.98,0.00010887,2]
[346805973,1735300258480,-1390.19,0.00010887,2]
[346805974,1735300258489,-500.0,0.00010887,2]
[346805975,1735300258498,-500.0,0.00010887,2]
[346805976,1735300258508,-500.0,0.00010887,2]
[346805977,1735300258517,-1932.07,0.00010887,2]
[346805978,1735300258526,-3228.01,0.00010887,2]
[346805979,1735300258537,-4856.46,0.00010887,2]
[346805980,1735300258546,-500.0,0.00010887,2]
[346805981,1735300258559,-500.0,0.00010887,2]
[346805982,1735300258568,-10209.73,0.00010887,2]
[346805983,1735300258578,-1790.75,0.00010887,2]
[346805984,1735300258588,-1097.59,0.00010887,2]
[346805985,1735300258599,-9823.93,0.00010887,2]
[346805986,1735300258609,-500.0,0.00010887,2]
[346805987,1735300258618,-500.0,0.00010887,2]
[346805988,1735300258628,-530.41053843,0.00010887,2]
[346805989,1735300258638,-1280.79,0.00010887,2]
[346805990,1735300258648,-500.0,0.00010887,2]
[346805991,1735300258658,-2331.51,0.00010887,2]
[346805992,1735300258668,-1980.97,0.00010887,2]
[346805993,1735300258677,-3337.85,0.00010887,2]
[346805994,1735300258687,-501.48434126,0.00010887,2]
[346805995,1735300258697,-2832.29,0.00010887,2]
[346805996,1735300258706,-1156.38,0.00010887,2]
[346805997,1735300258716,-3754.21,0.00010887,2]
[346805998,1735300258725,-5170.9,0.00010887,2]
[346805999,1735300258735,-1507.83,0.00010887,2]
[346806000,1735300258744,-4976.72,0.00010887,2]
[346806001,1735300258754,-3121.07,0.00010887,2]
[346806002,1735300258763,-1843.64,0.00010887,2]
[346806003,1735300258773,-25527.62,0.00010887,2]
[346806004,1735300258783,-1618.86,0.00010887,2]
[346806005,1735300258793,-1551.41,0.00010887,2]
[346806006,1735300258803,-500.0,0.00010887,2]
[346806007,1735300258812,-838.16,0.00010887,2]
[346806008,1735300258822,-735.94,0.00010887,2]
[346806009,1735300258832,-16280.82,0.00010887,2]
[346806010,1735300258841,-2560.27,0.00010887,2]
[346806011,1735300258851,-17301.28,0.00010887,2]
[346806012,1735300258861,-500.0,0.00010888,2]
[346806013,1735300258871,-500.0,0.00010888,2]
[346806014,1735300258880,-500.0,0.00010888,2]
[346806015,1735300258890,-501.57035091,0.00010888,2]
[346806016,1735300258899,-500.0,0.00010888,2]
[346806017,1735300258909,-514.77173186,0.00010888,2]
[346806018,1735300258919,-502.17029426,0.00010888,2]
[346806019,1735300258928,-500.0,0.00010888,2]
[346806020,1735300258938,-500.0,0.00010888,2]
[346806021,1735300258948,-508.51957175,0.00010888,2]
[346806022,1735300258958,-500.0,0.00010888,2]
[346806023,1735300258967,-500.0,0.00010888,2]
[346806024,1735300258977,-500.0,0.00010888,2]
[346806025,1735300258987,-500.0,0.00010888,2]
[346806026,1735300258997,-500.0,0.00010888,2]
[346806027,1735300259007,-500.0,0.00010888,2]
[346806028,1735300259016,-568.97764101,0.00010888,2]
[346806029,1735300259026,-500.0,0.00010888,2]
[346806030,1735300259036,-500.0,0.00010888,2]
[346806031,1735300259046,-500.0,0.00010888,2]
[346806032,1735300259056,-500.0,0.00010888,2]
[346806033,1735300259066,-500.0,0.00010888,2]
[346806034,1735300259075,-1475.39,0.00010888,2]
[346806035,1735300259086,-1734.06,0.00010888,2]
[346806036,1735300259096,-500.0,0.00010888,2]
[346806037,1735300259106,-1130.96,0.00010888,2]
[346806038,1735300259115,-622.08,0.00010888,2]
[346806039,1735300259124,-500.0,0.00010888,2]
[346806040,1735300259134,-1245.85,0.00010888,2]
[346806041,1735300259144,-500.0,0.00010888,2]
[346806042,1735300259154,-500.0,0.00010888,2]
[346806043,1735300259165,-500.0,0.00010888,2]
[346806044,1735300259175,-500.0,0.00010888,2]
[346806045,1735300259185,-827.99,0.00010888,2]
[346806046,1735300259195,-536.22,0.00010888,2]
[346806047,1735300259205,-500.0,0.00010888,2]